bitfinex/quotes_BTCUSD_20250208
["timestamp","ask_amount","ask_price","bid_price","bid_amount"]
[1739051696314,0.26276447,96607.0,96606.0,0.00022407]
[1739051697871,0.18438435,96607.0,96606.0,0.00022407]
[1739051705721,0.18338435,96607.0,96606.0,0.00022407]
[1739051706384,0.18538435,96607.0,96606.0,0.00022407]
[1739051707544,0.18638435,96607.0,96606.0,0.00022407]
[1739051754375,0.03111635,96607.0,96606.0,0.00022407]
[1739051754594,0.18638435,96607.0,96606.0,0.00022407]
[1739051755014,0.18638435,96607.0,96606.0,0.02247952]
[1739051755219,0.18638435,96607.0,96606.0,0.00022407]
[1739051755417,0.03111635,96607.0,96606.0,0.00022407]
[1739051755662,0.00304524,96607.0,96606.0,0.25000548]
[1739051755877,0.00304524,96607.0,96606.0,0.28239307]
[1739051756057,0.00304524,96607.0,96606.0,0.30464852]
[1739051756218,0.00304524,96607.0,96606.0,0.14937952]
[1739051756619,0.00204524,96607.0,96606.0,0.14937952]
[1739051757052,0.00304524,96607.0,96606.0,0.15437952]
[1739051757702,0.00104524,96607.0,96606.0,0.15437952]
[1739051758455,0.00104524,96607.0,96606.0,0.15637952]
[1739051758907,0.00104524,96607.0,96606.0,0.41318718]
[1739051759057,0.00104524,96607.0,96606.0,0.41215217]
[1739051759254,0.00204524,96607.0,96606.0,0.41415217]
[1739051759748,0.00104524,96607.0,96606.0,0.40915217]
[1739051760090,0.00104524,96607.0,96606.0,0.41415217]
[1739051760091,0.00204524,96607.0,96606.0,0.41415217]
[1739051760839,0.00104524,96607.0,96606.0,0.41215217]
[1739051761239,0.00204524,96607.0,96606.0,0.41415217]
[1739051767385,0.00204524,96607.0,96606.0,0.31164852]
[1739051767996,4.524e-05,96607.0,96606.0,0.30464852]
[1739051768405,0.00204524,96607.0,96606.0,0.31464852]
[1739051768788,0.00104524,96607.0,96606.0,0.31264852]
[1739051769203,0.00204524,96607.0,96606.0,0.31464852]
[1739051769683,0.00104524,96607.0,96606.0,0.31264852]
[1739051769864,4.524e-05,96607.0,96606.0,0.30464852]
[1739051770086,4.524e-05,96607.0,96606.0,0.14937952]
[1739051770236,0.00104524,96607.0,96606.0,0.30964852]
[1739051770444,0.00104524,96607.0,96606.0,0.07257952]
[1739051770843,0.00204524,96607.0,96606.0,0.07757952]
[1739051771044,0.00204524,96607.0,96606.0,0.06957952]
[1739051771430,0.00104524,96607.0,96606.0,0.06757952]
[1739051771673,4.524e-05,96607.0,96606.0,0.06757952]
[1739051771982,0.00104524,96607.0,96606.0,0.06957952]
[1739051772185,0.00104524,96607.0,96606.0,0.02447952]
[1739051772388,4.524e-05,96607.0,96606.0,0.02247952]
[1739051772533,0.00104524,96607.0,96606.0,0.02447952]
[1739051773786,0.00204524,96607.0,96606.0,0.02947952]
[1739051773964,0.00204524,96607.0,96606.0,0.02447952]
[1739051774303,0.00204524,96607.0,96606.0,0.02847952]
[1739051774706,0.00104524,96607.0,96606.0,0.02647952]
[1739051775199,0.00204524,96607.0,96606.0,0.02847952]
[1739051781565,0.20204524,96607.0,96606.0,0.02847952]
[1739051781985,0.20104524,96607.0,96606.0,0.02647952]
[1739051782399,0.20104524,96607.0,96606.0,0.02847952]
[1739051783003,0.20104524,96607.0,96606.0,0.00622407]
[1739051783166,0.08093864,96614.0,96606.0,0.00222407]
[1739051783529,0.02428676,96615.0,96606.0,0.00529448]
[1739051783706,0.02428676,96615.0,96607.0,0.02225321]
[1739051783861,0.155257,96614.0,96607.0,0.02225321]
[1739051784067,0.155257,96614.0,96606.0,0.00529448]
[1739051784277,0.155257,96614.0,96608.0,0.02225098]
[1739051784483,0.155257,96614.0,96606.0,0.00229448]
[1739051784683,0.207005,96616.0,96609.0,0.02224874]
[1739051784955,0.155255,96615.0,96606.0,0.00029448]
[1739051785135,0.155255,96615.0,96610.0,0.0222465]
[1739051785277,0.207005,96616.0,96606.0,0.00129448]
[1739051785278,0.155258,96613.0,96606.0,0.00129448]
[1739051785479,0.155255,96615.0,96606.0,0.00129448]
[1739051785682,0.155255,96615.0,96606.0,0.00029448]
[1739051786020,0.155255,96615.0,96607.0,0.02225321]
[1739051787961,0.155257,96614.0,96607.0,0.02225321]
[1739051788119,0.155257,96614.0,96606.0,0.00029448]
[1739051788526,0.13444218,96616.0,96606.0,0.00029448]
[1739051788726,0.155255,96615.0,96606.0,0.00029448]
[1739051788922,0.155255,96615.0,96607.0,0.02225321]
[1739051789166,0.28262038,96620.0,96607.0,0.02225321]
[1739051789370,0.155255,96616.0,96607.0,0.02225321]
[1739051790129,0.155257,96614.0,96606.0,0.00129448]
[1739051790331,0.206998,96619.0,96606.0,0.00129448]
[1739051790670,0.155255,96616.0,96606.0,0.00029448]
[1739051790879,0.156255,96616.0,96606.0,0.00029448]
[1739051791293,0.001,96616.0,96606.0,0.00029448]
[1739051791431,0.155256,96615.0,96606.0,0.00029448]
[1739051791845,0.155253,96617.0,96607.0,0.02225321]
[1739051792058,0.155254,96616.0,96607.0,0.02225321]
[1739051792711,0.156254,96616.0,96607.0,0.02225321]
[1739051793335,0.156254,96616.0,96606.0,0.00029448]
[1739051794154,0.155254,96616.0,96606.0,0.00029448]
[1739051794353,0.156254,96616.0,96606.0,0.00029448]
[1739051794581,0.157254,96616.0,96606.0,0.00029448]
[1739051795019,0.158254,96616.0,96606.0,0.00029448]
[1739051795655,0.158254,96616.0,96607.0,0.02225321]
[1739051796466,0.157254,96616.0,96607.0,0.02225321]
[1739051797152,0.003,96616.0,96607.0,0.02225321]
[1739051797348,0.155255,96615.0,96607.0,0.0001067]
[1739051799997,0.001,96616.0,96607.0,0.0001067]
[1739051800394,0.155258,96614.0,96607.0,0.0001067]
[1739051801689,0.002,96616.0,96607.0,0.0001067]
[1739051802032,0.157254,96616.0,96607.0,0.0001067]
[1739051802261,0.002,96616.0,96607.0,0.0001067]
[1739051802695,0.155253,96617.0,96607.0,0.0001067]
[1739051802984,0.155254,96616.0,96607.0,0.0011067]
[1739051803526,0.155254,96616.0,96607.0,0.0001067]
[1739051803743,0.156254,96616.0,96607.0,0.0001067]
[1739051804116,0.157254,96616.0,96607.0,0.0001067]
[1739051804670,0.002,96616.0,96607.0,0.0001067]
[1739051804881,0.157253,96616.0,96607.0,0.0001067]
[1739051807347,0.002,96616.0,96607.0,0.0001067]
[1739051807526,0.157254,96616.0,96607.0,0.0001067]
[1739051808750,0.002,96616.0,96607.0,0.0001067]
[1739051808953,0.157254,96616.0,96607.0,0.0001067]
[1739051809308,0.002,96616.0,96607.0,0.0001067]
[1739051810618,0.157254,96616.0,96607.0,0.0001067]
[1739051810973,0.15747808,96616.0,96607.0,0.0001067]
[1739051812757,0.00222408,96616.0,96607.0,0.0001067]
[1739051813161,0.15747908,96616.0,96607.0,0.0001067]
[1739051814476,0.155255,96615.0,96607.0,0.0001067]
[1739051815786,0.155255,96615.0,96608.0,0.02225098]
[1739051820310,0.00022408,96616.0,96608.0,0.02225098]
[1739051820466,0.15547908,96616.0,96608.0,0.02225098]
[1739051821685,0.00022408,96616.0,96608.0,0.02225098]
[1739051821898,0.155255,96615.0,96608.0,0.02225098]
[1739051823303,0.155257,96614.0,96608.0,0.02225098]
[1739051823505,0.155257,96614.0,96607.0,0.0001067]
[1739051823950,0.155257,96614.0,96608.0,0.02225098]
[1739051824144,0.155257,96614.0,96607.0,0.0001067]
[1739051824530,0.155257,96614.0,96608.0,0.02225098]
[1739051824883,0.155257,96614.0,96607.0,0.0001067]
[1739051825334,0.00022408,96616.0,96608.0,0.02325098]
[1739051825738,0.00022408,96616.0,96608.0,0.02225098]
[1739051825939,0.00022408,96616.0,96609.0,0.10250365]
[1739051826141,0.00022408,96616.0,96611.0,0.15526]
[1739051826366,0.00022408,96616.0,96610.0,0.2562095]
[1739051826572,0.00022408,96616.0,96610.0,0.20345015]
[1739051827066,0.00022408,96616.0,96610.0,0.35871315]
[1739051827545,0.00122408,96616.0,96610.0,0.35871315]
[1739051827747,0.00222408,96616.0,96610.0,0.35871315]
[1739051827903,0.00122408,96616.0,96610.0,0.35871315]
[1739051828355,0.00122408,96616.0,96610.0,0.20445015]
[1739051829277,0.00022408,96616.0,96610.0,0.20345015]
[1739051829392,0.00022408,96616.0,96610.0,0.20545015]
[1739051829849,0.00022408,96616.0,96610.0,0.20345015]
[1739051830956,0.00022408,96616.0,96610.0,0.20445015]
[1739051831320,0.00022408,96616.0,96610.0,0.20545015]
[1739051832762,0.00022408,96616.0,96610.0,0.36071315]
[1739051832958,0.00022408,96616.0,96610.0,0.20545015]
[1739051846332,0.00022408,96616.0,96610.0,0.20555685]
[1739051848356,0.00022408,96616.0,96610.0,0.12685685]
[1739051856928,0.00022408,96616.0,96611.0,0.00103495]
[1739051857121,0.00022408,96616.0,96611.0,0.15629595]
[1739051857349,0.00022408,96616.0,96612.0,0.02224203]
[1739051857531,0.00022408,96616.0,96612.0,0.02327698]
[1739051858502,0.00022408,96616.0,96612.0,0.02427698]
[1739051859128,0.00022408,96616.0,96612.0,0.02627698]
[1739051860208,0.00022408,96616.0,96612.0,0.02524203]
[1739051860427,0.00022408,96616.0,96612.0,0.02484203]
[1739051861675,0.00022408,96616.0,96613.0,0.0794]
[1739051862171,0.00022408,96616.0,96614.0,0.02219756]
[1739051862774,0.00022408,96616.0,96615.0,0.00103495]
[1739051863204,0.00022408,96616.0,96615.0,0.02219532]
[1739051864432,0.00022408,96616.0,96615.0,0.02719532]
[1739051865134,0.00122408,96616.0,96615.0,0.03019532]
[1739051866238,0.00122408,96616.0,96615.0,0.008]
[1739051866587,0.00122408,96616.0,96615.0,0.003]
[1739051866872,0.00122408,96616.0,96615.0,0.02519532]
[1739051867048,0.00122408,96616.0,96615.0,0.001]
[1739051867267,0.00022408,96616.0,96615.0,0.001]
[1739051867392,0.00022408,96616.0,96615.0,0.004]
[1739051867804,0.07552408,96616.0,96615.0,0.004]
[1739051871692,0.00022408,96616.0,96615.0,0.004]
[1739051872519,0.00022408,96616.0,96615.0,0.02619532]
[1739051872698,0.00022408,96616.0,96615.0,0.004]
[1739051875726,0.00022408,96616.0,96615.0,0.02619532]
[1739051875938,0.00022408,96616.0,96615.0,0.004]
[1739051881125,0.00022408,96616.0,96615.0,0.0814]
[1739051883233,0.00022408,96616.0,96615.0,0.004]
[1739051885121,0.00022408,96616.0,96615.0,0.00503491]
[1739051885547,0.00022408,96616.0,96615.0,0.004]
[1739051895345,0.00022408,96616.0,96615.0,0.26175865]
[1739051896364,0.00022408,96616.0,96615.0,0.25775865]
[1739051896503,0.00022408,96616.0,96615.0,0.26175865]
[1739051896709,0.00122408,96616.0,96615.0,0.26175865]
[1739051896905,0.00122408,96616.0,96615.0,0.26075865]
[1739051897117,0.00222408,96616.0,96615.0,0.26775865]
[1739051898185,0.09274122,96666.0,96615.0,0.11250365]
[1739051898416,0.155222,96636.0,96617.0,0.15525]
[1739051898609,0.155222,96636.0,96618.0,0.10353848]
[1739051899013,0.155222,96636.0,96618.0,0.25878848]
[1739051899815,0.1757516,96637.0,96619.0,0.155248]
[1739051899988,0.1747516,96637.0,96620.0,0.10353848]
[1739051900193,0.1747516,96637.0,96620.0,0.20604213]
[1739051900825,0.0195316,96637.0,96622.0,0.155243]
[1739051901037,0.0195316,96637.0,96623.0,0.00103483]
[1739051901233,0.0215316,96637.0,96623.0,0.00103483]
[1739051902220,0.0205316,96637.0,96624.0,0.00103483]
[1739051902422,0.0205316,96637.0,96621.0,0.00103483]
[1739051902638,0.0195316,96637.0,96621.0,0.10353848]
[1739051904539,0.0195316,96637.0,96622.0,0.10250365]
[1739051904748,0.0195316,96637.0,96623.0,0.00103483]
[1739051904970,0.0195316,96637.0,96622.0,0.10250365]
[1739051905492,0.0195316,96637.0,96622.0,0.16585777]
[1739051905724,0.1747516,96637.0,96622.0,0.16585777]
[1739051906298,0.1747516,96637.0,96623.0,0.02217744]
[1739051910804,0.1757516,96637.0,96623.0,0.02217744]
[1739051911043,0.1767516,96637.0,96623.0,0.02217744]
[1739051912452,0.0215316,96637.0,96623.0,0.02217744]
[1739051913264,0.0215316,96637.0,96623.0,0.02321226]
[1739051913500,0.0215316,96637.0,96624.0,0.00103482]
[1739051913810,0.0215316,96637.0,96624.0,0.02321002]
[1739051915032,0.0205316,96637.0,96624.0,0.02321002]
[1739051915434,0.0215316,96637.0,96624.0,0.02321002]
[1739051915679,0.0205316,96637.0,96624.0,0.02321002]
[1739051915881,0.0215316,96637.0,96624.0,0.02321002]
[1739051919238,0.1767516,96637.0,96624.0,0.02321002]
[1739051921637,0.0215316,96637.0,96624.0,0.0221752]
[1739051921841,0.155221,96636.0,96623.0,0.0001067]
[1739051922145,0.155221,96636.0,96624.0,0.0221752]
[1739051924095,0.155226,96633.0,96624.0,0.0221752]
[1739051924289,0.155239,96625.0,96624.0,0.0221752]
[1739051924536,0.238439,96625.0,96624.0,0.0221752]
[1739051924855,0.15524,96624.0,96623.0,0.0001067]
[1739051926040,0.238439,96625.0,96624.0,0.001]
[1739051926396,0.238439,96625.0,96624.0,0.002]
[1739051926853,0.238439,96625.0,96624.0,0.001]
[1739051927079,0.238439,96625.0,96623.0,0.0001067]
[1739051928231,0.0832,96625.0,96623.0,0.0001067]
[1739051929239,0.10238961,96625.0,96623.0,0.0001067]
[1739051929615,0.10338961,96625.0,96623.0,0.0001067]
[1739051929864,0.10438961,96625.0,96623.0,0.0001067]
[1739051940540,0.15524,96624.0,96623.0,0.0001067]
[1739051940689,0.10438961,96625.0,96623.0,0.0001067]
[1739051941313,0.10338961,96625.0,96623.0,0.0001067]
[1739051942539,0.10438961,96625.0,96623.0,0.0001067]
[1739051946179,0.02118961,96625.0,96623.0,0.0001067]
[1739051954195,0.17642861,96625.0,96623.0,0.0001067]
[1739051954512,0.15524,96624.0,96623.0,0.0001067]
[1739051954684,0.02118961,96625.0,96623.0,0.0001067]
[1739051955296,0.20667486,96624.0,96623.0,0.0001067]
[1739051957513,0.15524,96624.0,96623.0,0.0001067]
[1739051958488,0.15624,96624.0,96623.0,0.0001067]
[1739051960358,0.23544,96624.0,96623.0,0.0001067]
[1739051960939,0.48794365,96624.0,96623.0,0.0001067]
[1739051961135,0.53414365,96624.0,96623.0,0.0001067]
[1739051962663,0.63087328,96624.0,96623.0,0.0001067]
[1739051964570,0.53414365,96624.0,96623.0,0.0001067]
[1739051977548,0.48794365,96624.0,96623.0,0.0001067]
[1739051980223,0.30624,96624.0,96623.0,0.0001067]
[1739051980848,0.001,96624.0,96623.0,0.0001067]
[1739051981054,0.001,96624.0,96623.0,0.0460067]
[1739051981380,0.001,96624.0,96623.0,0.06818414]
[1739051981645,0.001,96624.0,96623.0,0.0460067]
[1739051982971,0.001,96624.0,96623.0,0.1292067]
[1739051983173,0.00022408,96637.0,96623.0,0.1302067]
[1739051983383,0.001,96624.0,96623.0,0.1302067]
[1739051983990,0.07562338,96633.0,96623.0,0.1302067]
[1739051984199,0.07562338,96633.0,96623.0,0.1312067]
[1739051984363,0.02421193,96636.0,96625.0,0.155238]
[1739051984562,0.00022408,96636.0,96628.0,0.155234]
[1739051984764,0.00022408,96636.0,96626.0,0.0832]
[1739051985180,0.002,96633.0,96626.0,0.0832]
[1739051985436,0.07562338,96640.0,96626.0,0.0832]
[1739051985842,0.003,96636.0,96626.0,0.0832]
[1739051986253,0.004,96633.0,96626.0,0.0832]
[1739051986455,0.004,96633.0,96627.0,0.04914417]
[1739051986600,0.003,96636.0,96627.0,0.04914417]
[1739051987029,0.004,96636.0,96627.0,0.04914417]
[1739051987355,0.00422408,96636.0,96627.0,0.04914417]
[1739051987502,0.00322408,96636.0,96627.0,0.04914417]
[1739051987707,0.00422408,96636.0,96635.0,0.284123]
[1739051987920,0.00422408,96636.0,96635.0,0.38662665]
[1739051988279,0.00122408,96636.0,96635.0,0.38662665]
[1739051988484,0.00122408,96636.0,96635.0,0.40877726]
[1739051989218,0.00222408,96636.0,96635.0,0.41677726]
[1739051989426,0.00122408,96636.0,96635.0,0.40877726]
[1739051989886,0.00222408,96636.0,96635.0,0.41777726]
[1739051990398,0.00222408,96636.0,96635.0,0.52028091]
[1739051991014,0.00122408,96636.0,96635.0,0.51828091]
[1739051991265,0.00222408,96636.0,96635.0,0.52728091]
[1739051991593,0.00122408,96636.0,96635.0,0.51828091]
[1739051992039,0.00122408,96636.0,96635.0,0.41577726]
[1739051992475,0.00222408,96636.0,96635.0,0.42477726]
[1739051993267,0.00222408,96636.0,96635.0,0.37952304]
[1739051993463,0.00222408,96636.0,96635.0,0.42477726]
[1739051996259,0.00222408,96636.0,96635.0,0.44777726]
[1739051996481,0.00222408,96636.0,96635.0,0.55028091]
[1739051997300,0.00222408,96636.0,96635.0,1.41678091]
[1739052000549,0.00222408,96636.0,96635.0,1.56678091]
[1739052001159,0.00222408,96636.0,96635.0,1.57678091]
[1739052001988,0.00222408,96636.0,96635.0,1.52153784]
[1739052002185,0.00122408,96636.0,96635.0,1.51253784]
[1739052002717,0.00022408,96636.0,96635.0,1.50553784]
[1739052003410,0.00122408,96636.0,96635.0,1.52253784]
[1739052003646,0.00122408,96636.0,96635.0,1.53153784]
[1739052003800,0.00122408,96636.0,96635.0,1.52253784]
[1739052003996,0.00022408,96636.0,96635.0,1.51553784]
[1739052004215,0.00122408,96636.0,96635.0,1.53153784]
[1739052005188,8e-08,96646.0,96645.0,0.464707]
[1739052005390,8e-08,96646.0,96645.0,0.6697143]
[1739052005594,8e-08,96646.0,96645.0,0.6797143]
[1739052006435,0.00100008,96646.0,96645.0,0.6887143]
[1739052006800,0.00100008,96646.0,96645.0,0.6797143]
[1739052006801,8e-08,96646.0,96645.0,0.6797143]
[1739052007211,0.00100008,96646.0,96645.0,0.6887143]
[1739052007410,0.00100008,96646.0,96645.0,0.6977143]
[1739052007610,0.00100008,96646.0,96645.0,0.6887143]
[1739052008030,0.00100008,96646.0,96645.0,0.6977143]
[1739052008273,0.00100008,96646.0,96645.0,0.6887143]
[1739052008481,8e-08,96646.0,96645.0,0.70086419]
[1739052008675,8e-08,96646.0,96645.0,0.72277763]
[1739052008878,8e-08,96646.0,96645.0,0.73177763]
[1739052009282,8e-08,96646.0,96645.0,1.58927763]
[1739052009688,8e-08,96646.0,96645.0,1.60727763]
[1739052010016,8e-08,96646.0,96645.0,1.59827763]
[1739052010421,8e-08,96646.0,96645.0,1.60727763]
[1739052010878,8e-08,96646.0,96645.0,1.61627763]
[1739052011461,8e-08,96646.0,96645.0,1.60727763]
[1739052011900,8e-08,96646.0,96645.0,1.61627763]
[1739052012302,8e-08,96646.0,96645.0,1.60727763]
[1739052012504,8e-08,96646.0,96645.0,1.58927763]
[1739052012962,8e-08,96646.0,96645.0,1.60727763]
[1739052013165,8e-08,96646.0,96645.0,1.59827763]
[1739052013367,8e-08,96646.0,96645.0,1.58927763]
[1739052013515,8e-08,96646.0,96645.0,1.59827763]
[1739052014374,8e-08,96646.0,96645.0,1.63027075]
[1739052015180,8e-08,96646.0,96645.0,1.63927075]
[1739052017959,8e-08,96646.0,96645.0,1.66086016]
[1739052024934,8e-08,96646.0,96645.0,1.66108423]
[1739052027505,8e-08,96646.0,96645.0,1.65108423]
[1739052027722,8e-08,96646.0,96645.0,1.66108423]
[1739052028786,8e-08,96646.0,96645.0,1.66848423]
[1739052029759,8e-08,96646.0,96645.0,1.66108423]
[1739052029960,8e-08,96646.0,96645.0,1.66848423]
[1739052032184,8e-08,96646.0,96645.0,1.65848423]
[1739052032408,8e-08,96646.0,96645.0,1.66848423]
[1739052035674,8e-08,96646.0,96645.0,1.66848423]
[1739052036274,8e-08,96646.0,96645.0,1.59088423]
[1739052036411,8e-08,96646.0,96645.0,1.58088423]
[1739052036893,8e-08,96646.0,96645.0,1.57088423]
[1739052037065,8e-08,96646.0,96645.0,1.59088423]
[1739052040779,8e-08,96646.0,96645.0,1.64788423]
[1739052041098,8e-08,96646.0,96645.0,1.66588423]
[1739052048240,8e-08,96646.0,96645.0,1.65588423]
[1739052048398,8e-08,96646.0,96645.0,1.66588423]
[1739052055066,0.08274122,96691.0,96647.0,0.02]
[1739052055362,0.08274122,96691.0,96661.0,0.15]
[1739052055562,0.00013602,96695.0,96663.0,0.15]
[1739052055861,0.00013602,96695.0,96681.0,0.155149]
[1739052056206,0.01940514,96694.0,96681.0,0.155149]
[1739052057376,0.01940514,96694.0,96678.0,0.20687]
[1739052057531,0.01940514,96693.0,96681.0,0.155149]
[1739052057733,0.01940514,96693.0,96682.0,0.155147]
[1739052058058,0.0817,96691.0,96682.0,0.155146]
[1739052058609,0.0817,96691.0,96680.0,0.206867]
[1739052058820,0.01940514,96690.0,96680.0,0.30937065]
[1739052059002,0.10110514,96690.0,96682.0,0.155147]
[1739052059434,0.10110514,96690.0,96682.0,0.001]
[1739052059637,0.10110514,96690.0,96681.0,0.1787189]
[1739052060353,0.0817,96688.0,96682.0,0.155146]
[1739052060547,0.0817,96688.0,96682.0,0.001]
[1739052060721,0.0817,96688.0,96683.0,0.15761967]
[1739052060940,0.0817,96688.0,96687.0,0.155139]
[1739052061104,0.0817,96688.0,96687.0,0.25764265]
[1739052061305,0.0817,96688.0,96687.0,0.28120115]
[1739052062981,0.0817,96688.0,96687.0,0.28320115]
[1739052063472,0.0817,96688.0,96687.0,0.28620115]
[1739052065550,0.0001067,96694.0,96687.0,0.20105407]
[1739052065748,0.0001067,96694.0,96693.0,0.15513]
[1739052065946,0.0001067,96694.0,96693.0,0.28117876]
[1739052066357,0.01948458,96694.0,96693.0,0.28117876]
[1739052067481,0.01948458,96694.0,96693.0,0.28717876]
[1739052069171,0.01948458,96694.0,96693.0,0.29117876]
[1739052072451,0.0001067,96694.0,96693.0,0.29117876]
[1739052073646,0.0001067,96694.0,96693.0,0.13604876]
[1739052074047,0.0001067,96694.0,96693.0,0.29117876]
[1739052075274,0.0001067,96694.0,96693.0,0.13604876]
[1739052078267,0.0001067,96694.0,96693.0,0.29117876]
[1739052078400,0.0001067,96694.0,96693.0,0.13604876]
[1739052081222,0.01947922,96694.0,96693.0,0.13604876]
[1739052084777,0.01947922,96694.0,96693.0,0.13627283]
[1739052086903,0.01947922,96694.0,96693.0,0.29140283]
[1739052087313,0.01947922,96694.0,96693.0,0.13627283]
[1739052092589,0.07555065,96703.0,96693.0,0.13627283]
[1739052092790,0.07555065,96703.0,96694.0,0.10250365]
[1739052093310,0.07555065,96703.0,96695.0,0.02357076]
[1739052093459,0.07555065,96703.0,96695.0,0.12607441]
[1739052094071,0.07555065,96703.0,96695.0,0.28120041]
[1739052094296,0.07555065,96703.0,96695.0,0.12607441]
[1739052094676,0.07555065,96703.0,96695.0,0.12707441]
[1739052095910,0.07555065,96703.0,96695.0,0.12807441]
[1739052096109,0.07555065,96703.0,96698.0,0.155122]
[1739052096307,0.07555065,96708.0,96696.0,0.02356853]
[1739052096514,0.07555065,96708.0,96699.0,0.02356183]
[1739052096733,0.07555065,96708.0,96697.0,0.02356629]
[1739052096931,0.07555065,96708.0,96700.0,0.0235596]
[1739052097145,0.07555065,96708.0,96698.0,0.02356406]
[1739052097292,0.07555065,96708.0,96701.0,0.02355737]
[1739052097492,0.07555065,96708.0,96698.0,0.001]
[1739052097694,0.07555065,96708.0,96702.0,0.02355513]
[1739052097939,0.07555065,96708.0,96695.0,0.10250365]
[1739052098145,0.07555065,96708.0,96694.0,0.02734798]
[1739052098146,0.07655065,96708.0,96697.0,0.361954]
[1739052098351,0.07655065,96708.0,96698.0,0.15170662]
[1739052098524,0.0001067,96709.0,96708.0,0.155106]
[1739052098745,0.0001067,96709.0,96708.0,0.25760965]
[1739052100067,0.0001067,96709.0,96708.0,0.10250365]
[1739052100223,0.0001067,96709.0,96708.0,0.13004539]
[1739052100418,0.0001067,96709.0,96708.0,0.13304539]
[1739052100824,0.0001067,96709.0,96708.0,0.28515139]
[1739052101280,0.0001067,96709.0,96708.0,0.28915139]
[1739052101586,0.0001067,96709.0,96708.0,0.35542913]
[1739052101801,0.0001067,96709.0,96708.0,0.28415139]
[1739052102040,0.0001067,96709.0,96708.0,0.28715139]
[1739052102232,0.03113318,96709.0,96708.0,0.28715139]
[1739052102469,0.03113318,96709.0,96708.0,0.28415139]
[1739052102894,0.03113318,96709.0,96708.0,0.28815139]
[1739052103279,0.03113318,96709.0,96708.0,0.38765504]
[1739052103654,0.03113318,96709.0,96708.0,0.46865504]
[1739052103863,0.03113318,96709.0,96708.0,0.51715504]
[1739052104044,0.03113318,96709.0,96708.0,0.51115504]
[1739052104253,0.03113318,96709.0,96708.0,0.51715504]
[1739052104691,0.05050724,96709.0,96708.0,0.51315504]
[1739052104899,0.05050724,96709.0,96708.0,0.51115504]
[1739052105054,0.05050724,96709.0,96708.0,0.51915504]
[1739052105250,0.05050724,96709.0,96708.0,0.54544796]
[1739052105474,0.05050724,96709.0,96708.0,0.55144796]
[1739052106198,0.01948076,96709.0,96708.0,0.55144796]
[1739052106505,0.01948076,96709.0,96708.0,0.88074796]
[1739052107255,0.01948076,96709.0,96708.0,0.87274796]
[1739052107733,0.01948076,96709.0,96708.0,0.87074796]
[1739052107930,0.01948076,96709.0,96708.0,0.86874796]
[1739052108311,0.01948076,96709.0,96708.0,0.87774796]
[1739052108613,0.01948076,96709.0,96708.0,0.88474796]
[1739052109138,0.0001067,96709.0,96708.0,0.88474796]
[1739052109297,0.0001067,96709.0,96708.0,0.87174796]
[1739052109499,0.0001067,96709.0,96708.0,0.86274796]
[1739052109721,0.0001067,96709.0,96708.0,0.87174796]
[1739052110131,0.0001067,96709.0,96708.0,0.77724431]
[1739052110304,0.0001067,96709.0,96708.0,0.76824431]
[1739052110510,0.0001067,96709.0,96708.0,0.77724431]
[1739052111585,0.0001067,96709.0,96708.0,0.76924431]
[1739052111766,0.0001067,96709.0,96708.0,0.77824431]
[1739052111972,0.0001067,96709.0,96708.0,0.88074796]
[1739052112320,0.0001067,96709.0,96708.0,0.87451861]
[1739052116323,0.0001067,96709.0,96708.0,1.41171861]
[1739052116520,0.0001067,96709.0,96708.0,1.36650479]
[1739052117694,0.0001067,96709.0,96708.0,1.35750479]
[1739052118117,0.0001067,96709.0,96708.0,1.36650479]
[1739052118992,0.0001067,96709.0,96708.0,1.35750479]
[1739052119240,0.0001067,96709.0,96708.0,1.52150479]
[1739052119441,0.0001067,96709.0,96708.0,1.53950479]
[1739052119639,0.0001067,96709.0,96708.0,1.53972886]
[1739052119794,0.0001067,96709.0,96708.0,1.54872886]
[1739052120597,0.0001067,96709.0,96708.0,1.53972886]
[1739052120817,0.0001067,96709.0,96708.0,1.54872886]
[1739052122144,0.0001067,96709.0,96708.0,1.53072886]
[1739052122607,0.0001067,96709.0,96708.0,1.53972886]
[1739052122861,0.0001067,96709.0,96708.0,1.52172886]
[1739052123218,0.0001067,96709.0,96708.0,1.53972886]
[1739052127394,1e-08,96714.0,96713.0,0.155098]
[1739052127571,1e-08,96714.0,96713.0,0.51193898]
[1739052127801,1e-08,96714.0,96713.0,0.52820972]
[1739052129361,1e-08,96714.0,96713.0,0.53720972]
[1739052129569,1e-08,96714.0,96713.0,0.54620972]
[1739052129761,1e-08,96714.0,96713.0,0.55360972]
[1739052131304,1e-08,96714.0,96713.0,1.42010972]
[1739052132442,0.00010671,96714.0,96713.0,1.42010972]
[1739052137525,0.00010671,96714.0,96713.0,1.45221156]
[1739052138041,0.00010671,96714.0,96713.0,1.44321156]
[1739052139085,0.00010671,96714.0,96713.0,1.43421156]
[1739052139287,0.00010671,96714.0,96713.0,1.44321156]
[1739052139495,0.00010671,96714.0,96713.0,1.45221156]
[1739052139881,0.00010671,96714.0,96713.0,1.44321156]
[1739052140087,0.00010671,96714.0,96713.0,1.43421156]
[1739052140311,0.00010671,96714.0,96713.0,1.44321156]
[1739052140504,0.00010671,96714.0,96713.0,1.45221156]
[1739052140707,0.00010671,96714.0,96713.0,1.46221156]
[1739052140906,0.00010671,96714.0,96713.0,1.61221156]
[1739052142145,0.00010671,96714.0,96713.0,1.60321156]
[1739052142382,0.0002,96749.0,96726.0,0.155077]
[1739052142552,0.00067713,96727.0,96726.0,1.20161422]
[1739052142713,0.00067713,96727.0,96726.0,1.21786436]
[1739052144091,0.00067713,96727.0,96726.0,1.22686436]
[1739052144292,0.00067713,96727.0,96726.0,1.30666436]
[1739052144497,0.00067713,96727.0,96726.0,1.60126813]
[1739052145297,0.00067713,96727.0,96726.0,1.58326813]
[1739052145523,0.00067713,96727.0,96726.0,1.59066813]
[1739052147828,0.00067713,96727.0,96726.0,1.63378308]
[1739052148433,0.00067713,96727.0,96726.0,1.64278308]
[1739052152073,0.00067713,96727.0,96726.0,1.65278308]
[1739052152478,0.0001067,96743.0,96726.0,1.65278308]
[1739052152479,0.0001067,96743.0,96735.0,0.01]
[1739052152703,0.00017696,96743.0,96742.0,0.50705465]
[1739052152904,0.00017696,96743.0,96742.0,0.58691953]
[1739052153105,0.00017696,96743.0,96742.0,0.60417775]
[1739052154127,0.00017696,96743.0,96742.0,0.63418471]
[1739052154309,9.6e-07,96743.0,96742.0,1.62318836]
[1739052154885,9.6e-07,96743.0,96742.0,1.63218836]
[1739052155090,9.6e-07,96743.0,96742.0,1.63958836]
[1739052155304,9.6e-07,96743.0,96742.0,1.63058836]
[1739052155458,9.6e-07,96743.0,96742.0,1.63958836]
[1739052155660,9.6e-07,96743.0,96742.0,1.63058836]
[1739052155922,9.6e-07,96743.0,96742.0,1.62158836]